Cogmind - Beta 12 @@@ ROGUE MODE // 2024.02.16 @ 21:40:47 Player: pGoos Result: Destroyed by G-34 Mercenary with Small Laser Performance ------------- Evolutions (1) 500 Regions Visited (4) 800 Robots Destroyed (18) 90 Value Destroyed (496) 496 Prototype IDs (0) 0 Alien Tech Used (0) 0 Bonus (0) 0 TOTAL SCORE: 1886 Bonus ------- None Cogmind --------- Core Integrity 0/400 Matter 159/300 Energy 84/100 System Corruption 0% Temperature Cool (19) Movement Core (100) Ox1 Location -9/Mines Parts ------- > --- POWER (1) -------- (None) > --- PROPULSION (4) --- (None) > --- UTILITY (2) ------ Terrain Scanner > --- WEAPON (2) ------- Particle Gun > --- INVENTORY (5) ---- Medium Matter Pod (82) Rocket Launcher Peak State ------------ > --- POWER ------------ Deuterium Engine > --- PROPULSION ------- Light Treads Aluminum Leg Aluminum Leg Aluminum Leg > --- UTILITY ---------- Small Storage Unit Improved Terrain Scanner > --- WEAPON ----------- Mace Katana > --- INVENTORY -------- Deuterium Engine Light Nuclear Core Flight Unit EM Pulse Gun Small Laser Beam Rifle Particle Gun Assault Rifle [Rating: 17] Favorites ----------- Power Deuterium Engine Engine Deuterium Engine Power Core Light Nuclear Core Propulsion Aluminum Leg Treads Light Treads Leg Aluminum Leg Wheel Compact Wheel Utility Small Storage Unit Device Improved Terrain Scanner Storage Small Storage Unit Weapon Assault Rifle Energy Gun EM Pulse Gun Ballistic Gun Assault Rifle Launcher Rocket Launcher Special Weapon Mining Laser Impact Weapon Mace Slashing Weapon Katana Build | -11 -10 -10 -9 -9 ------- Run | Jun Mat Min Mat Min Slots Evolved 2 | . . . 2 . Power . | . . . . . Propulsion 2 | . . . 2 . Utility . | . . . . . Weapon . | . . . . . Parts Attached 32 | 5 3 4 14 6 Power 5 | 1 . 1 3 . Engine 4 | 1 . . 3 . Core 1 | . . 1 . . Reactor . | . . . . . Propulsion 9 | 2 . 2 4 1 Treads 1 | . . . 1 . Leg 6 | . . 2 3 1 Wheel 2 | 2 . . . . Hover . | . . . . . Flight . | . . . . . Utility 6 | . 3 1 1 1 Device 3 | . . 1 1 1 Storage 3 | . 3 . . . Processor . | . . . . . Hackware . | . . . . . Protection . | . . . . . Artifact . | . . . . . Weapon 12 | 2 . . 6 4 Energy Gun 4 | 1 . . 2 1 Energy Cannon . | . . . . . Ballistic Gun 1 | 1 . . . . Ballistic Cannon . | . . . . . Launcher 3 | . . . . 3 Special Weapon 1 | . . . 1 . Impact Weapon 2 | . . . 2 . Slashing Weapon 1 | . . . 1 . Piercing Weapon . | . . . . . Special Melee Weapon . | . . . . . Unidentified Prototypes . | . . . . . Parts Lost 16 | . . 2 10 4 Power 3 | . . 1 2 . Propulsion 7 | . . 1 5 1 Utility 1 | . . . 1 . Weapon 5 | . . . 2 3 Highest Loss Streak 8 | . . 2 8 3 To Critical Strikes 1 | . . . 1 . Average Slot Usage (%) 81 | . 88 98 91 13 Engine 6 | . 14 4 9 . Core 3 | . . 9 1 . Leg 20 | . . 17 35 1 Wheel 6 | . 28 9 . . Device 8 | . . 12 10 1 Storage 11 | . 17 15 10 . Energy Gun 9 | . 14 14 6 1 Ballistic Gun 8 | . 14 14 5 . Impact Weapon 1 | . . . 4 . Slashing Weapon 2 | . . . 5 . Naked Turns 19 | . . . 7 12 Heaviest Build 20 | 7 16 15 20 8 Greatest Support 40 | 32 32 32 40 10 Greatest Overweight (x) 2 | . . . 1 2 Average Overweight (x) . | . . . . . Largest Inventory Capacity 8 | 5 8 8 8 5 Average Capacity 7 | 5 7 8 7 5 Most Carried 8 | 5 8 8 8 5 Average Carried 6 | 3 7 7 7 3 Final Capacity 8 | 5 8 8 5 5 Final Carried 8 | 5 8 7 5 2 Class Distribution -------------------- 100% | Mutant Dominant Class ---------------- Mutant | -10/Materials Mutant | -10/Mines Mutant | -9/Materials Mutant | -9/Mines Resources | -11 -10 -10 -9 -9 ----------- Run | Jun Mat Min Mat Min Matter Collected 528 | 201 . 96 207 24 Remotely . | . . . . . Salvage Created 538 | . . 42 412 84 Parts 35 | . . 2 26 7 Haulers Intercepted . | . . . . . Recyclers Shooed . | . . . . . Parts Field Recycled . | . . . . . Retrieved Matter . | . . . . . Parts Self-Destructed . | . . . . . Prevented . | . . . . . Kills | -11 -10 -10 -9 -9 ------- Run | Jun Mat Min Mat Min Combat Hostiles Destroyed 13 | . . 1 7 5 Melee 2 | . . . 2 . Guns 6 | . . 1 5 . AOE 5 | . . . . 5 Classes Destroyed 7 | . . 1 4 2 Worker 2 | . . . 2 . Tunneler 2 | . . . . 2 Operator 1 | . . . 1 . Swarmer 1 | . . . . 1 Grunt 8 | . . 1 3 4 Duelist 1 | . . . 1 . Sentry 3 | . . . 3 . Best Kill Streak 5 | . . 1 4 5 Combat Bots Only 4 | . . 1 4 4 Max Kills in Single Turn 2 | . . 1 1 2 Gunslinging . | . . . . . Exploded 2 | . . . . 2 Melee 1 | . . . 1 . Uniques/NPCs Destroyed . | . . . . . Combat | -11 -10 -10 -9 -9 -------- Run | Jun Mat Min Mat Min Damage Taken 1935 | . 52 191 1171 521 Core 470 | . 17 53 231 169 Absorbed by Shields . | . . . . . Core Remaining (%) 86 | 100 . 72 . . Volleys Fired 46 | . 2 7 24 13 Largest 2 | . 2 2 2 2 Hottest 100 | . 60 60 76 100 Shots Fired 76 | . 4 14 43 15 Gun 62 | . 4 14 43 1 Cannon . | . . . . . Launcher 10 | . . . . 10 Special 4 | . . . . 4 Kinetic 28 | . 2 7 19 . Thermal 27 | . . . 22 5 Explosive 10 | . . . . 10 Electromagnetic 11 | . 2 7 2 . Robot Hit Streak 9 | . 1 2 9 2 Robot Miss Streak 3 | . 2 3 2 1 Penetration Max . | . . . . . Secondary Targets 1 | . . . 1 . Max Gunslinging Chain 1 | . . . 1 . Shots Hit Robots 49 | . 2 5 38 4 Core Hits 27 | . 1 3 15 8 Critical Kills . | . . . . . Critical Parts Destroyed 1 | . . . 1 . Critical Strikes 3 | . . . 3 . Burn 2 | . . . 2 . Smash 1 | . . . 1 . Melee Attacks 16 | . . . 16 . Impact 6 | . . . 6 . Slashing 10 | . . . 10 . Piercing . | . . . . . Sneak Attacks 4 | . . . 4 . Combat Hostiles . | . . . . . Follow-up Attacks 4 | . . . 4 . Damage Inflicted 1477 | . 30 61 882 504 Guns 485 | . 30 61 380 14 Cannons . | . . . . . Explosions 490 | . . . . 490 Melee 502 | . . . 502 . Ramming . | . . . . . Kinetic 178 | . 14 20 144 . Thermal 240 | . . . 226 14 Explosive 490 | . . . . 490 Electromagnetic 67 | . 16 41 10 . Impact 236 | . . . 236 . Slashing 266 | . . . 266 . Piercing . | . . . . . Highest Corruption . | . . . . . Average Corruption . | . . . . . Corruption Purged . | . . . . . Corruption Blocked . | . . . . . Overload Shots . | . . . . . Overflow Damage 152 | . . . 143 9 Projectiles . | . . . . . Explosions 9 | . . . . 9 Melee 143 | . . . 143 . Knockbacks 1 | . . . 1 . Impact 1 | . . . 1 . Kinetic . | . . . . . Secondary . | . . . . . Self-Inflicted Damage 48 | . . . . 48 Shots 1 | . . . . 1 Rammed . | . . . . . Targets Rammed . | . . . . . Kicked . | . . . . . Crushed . | . . . . . Highest Temperature 123 | . . 32 123 22 Average Temperature 45 | . . 13 56 16 Received Heat Transfer 519 | . . 126 255 138 Siege Activations . | . . . . . Robots Corrupted . | . . . . . Combat Hostiles . | . . . . . Parts Fried 1 | . . . 1 . Impact Corruptions 6 | . . . 6 . Robots Melted . | . . . . . Combat Hostiles . | . . . . . Parts Melted 2 | . . . 2 . Heat Transferred 753 | . . . 716 37 Parts Sabotaged . | . . . . . Parts Stolen . | . . . . . Parts Stripped . | . . . . . Power Chain Reactions . | . . . . . Missiles Intercepted . | . . . . . Alert | -11 -10 -10 -9 -9 ------- Run | Jun Mat Min Mat Min Peak Influence 253 | . 34 20 253 179 Initial 13 | . . 13 7 . Average 56 | . 16 17 92 79 Maximum Alert Level 1 | . . . 1 . Low Security (%) 94 | 100 100 100 86 100 Level 1 5 | . . . 13 . Level 2 . | . . . . . Level 3 . | . . . . . Level 4 . | . . . . . Level 5 . | . . . . . High Security . | . . . . . Max Security . | . . . . . Squads Dispatched 4 | . 1 . 3 . Investigation . | . . . . . Extermination . | . . . . . Reinforcement 4 | . 1 . 3 . Assault . | . . . . . Garrison . | . . . . . Intercept . | . . . . . Searches Triggered . | . . . . . Construction Impeded . | . . . . . Haulers Reinforced . | . . . . . Active Scanning Responses . | . . . . . Cargo Convoy Interrupts . | . . . . . Stealth | -11 -10 -10 -9 -9 --------- Run | Jun Mat Min Mat Min Distress Signals 6 | . 1 . 5 . Communications Jammed . | . . . . . Distress Signals . | . . . . . Times Spotted 45 | . 7 2 25 11 Peak Tracking Total 11 | . 5 2 11 6 Tactical Retreats 1 | . . . . 1 Traps | -11 -10 -10 -9 -9 ------- Run | Jun Mat Min Mat Min Traps Triggered . | . . . . . Indirectly . | . . . . . Trap Hack Attempts . | . . . . . Triggered . | . . . . . Disarmed . | . . . . . Reprogrammed 6 | . 6 . . . Reused . | . . . . . Traps Extracted . | . . . . . Installed . | . . . . . Triggered . | . . . . . Machines | -11 -10 -10 -9 -9 ---------- Run | Jun Mat Min Mat Min Machines Disabled . | . . . . . Max in Single Turn . | . . . . . Machines Repaired . | . . . . . Machines Sabotaged . | . . . . . Overloaded Fab Kills . | . . . . . Hacking | -11 -10 -10 -9 -9 --------- Run | Jun Mat Min Mat Min Machines Accessed 4 | . 2 . 2 . Terminals 4 | . 2 . 2 . Fabricators . | . . . . . Repair Stations . | . . . . . Recycling Units . | . . . . . Scanalyzers . | . . . . . Garrison Access . | . . . . . Total Hacks 11 | . 7 . 4 . Successful 5 | . 4 . 1 . Failed 6 | . 3 . 3 . Catastrophic 1 | . 1 . . . Database Lockouts . | . . . . . Manual . | . . . . . Terminals 11 | . 7 . 4 . Fabricators . | . . . . . Repair Stations . | . . . . . Recycling Units . | . . . . . Scanalyzers . | . . . . . Garrison Access . | . . . . . Terminal Hacks 5 | . 4 . 1 . Record 1 | . 1 . . . Alert Level 1 | . 1 . . . Locate Traps 1 | . 1 . . . Reprogram Traps 1 | . 1 . . . Zone Layout 1 | . . . 1 . Fabricator Hacks . | . . . . . Repair Station Hacks . | . . . . . Recycling Unit Hacks . | . . . . . Scanalyzer . | . . . . . Garrison Access Hacks . | . . . . . Unauthorized Hacks . | . . . . . Terminals . | . . . . . Fabricators . | . . . . . Repair Stations . | . . . . . Recycling Units . | . . . . . Scanalyzers . | . . . . . Garrison Access . | . . . . . Data Cores Recovered . | . . . . . Used . | . . . . . Hacking Detections 3 | . 1 . 2 . Full Trace Events . | . . . . . Feedback Events . | . . . . . Feedback Blocked . | . . . . . Robot Schematics Acquired . | . . . . . Robots Built . | . . . . . Authchips . | . . . . . Time . | . . . . . Total Robot Build Rating . | . . . . . Part Schematics Acquired . | . . . . . Parts Built . | . . . . . Authchips . | . . . . . Time . | . . . . . Total Part Build Rating . | . . . . . Parts Repaired . | . . . . . Time . | . . . . . Parts Recycled . | . . . . . Recycled Matter . | . . . . . Retrieved Matter . | . . . . . Retrieved Components . | . . . . . Parts Scanalyzed . | . . . . . Part Schematics Acquired . | . . . . . Parts Damaged . | . . . . . Bothacking | -11 -10 -10 -9 -9 ------------ Run | Jun Mat Min Mat Min Used RIF Installer . | . . . . . Robots Hacked . | . . . . . Non-combat . | . . . . . Combat . | . . . . . Robot Hacks Applied . | . . . . . Relay Couplers Released . | . . . . . Fabnet Peak Effective % . | . . . . . Robots Rewired . | . . . . . Allies Hacked . | . . . . . Hacks Repelled . | . . . . . Allies | -11 -10 -10 -9 -9 -------- Run | Jun Mat Min Mat Min Total Allies . | . . . . . Largest Group . | . . . . . Highest-Rated Group . | . . . . . Highest-Rated Ally . | . . . . . Total Orders . | . . . . . Ally Attacks . | . . . . . Total Damage . | . . . . . Kills . | . . . . . Allies Corrupted . | . . . . . Allies Melted . | . . . . . Intel | -11 -10 -10 -9 -9 ------- Run | Jun Mat Min Mat Min Robot Analysis Total . | . . . . . Derelict Logs Recovered . | . . . . . Drone Launches . | . . . . . Drone Recoveries . | . . . . . Exploration | -11 -10 -10 -9 -9 ------------- Run | Jun Mat Min Mat Min Turns Passed 1091 | 46 116 322 453 154 Spaces Moved 759 | 38 102 217 266 136 Core 141 | 7 . . 18 116 Treads 1 | . . . 1 . Legs 396 | . . 129 247 20 Wheels 221 | 31 102 88 . . Hover . | . . . . . Flight . | . . . . . Fastest Speed 50 | 50 100 100 50 50 Average Speed 104 | 90 100 111 116 76 Slowest Speed 190 | 100 100 120 190 150 Overloaded Moves . | . . . . . Propulsion Burnouts . | . . . . . Robots Hopped . | . . . . . Cave-ins Triggered . | . . . . . Exploration Rate (%) 26 | 3 27 37 34 31 Regions Visited 4 Branch Regions 2 Pre-discovered Areas . | . . . . . Known Exits Taken . | . . . . . Unknown Exits Taken 4 | 1 1 1 1 . Scrap Searched . | . . . . . Spaces Dug 1 | . . . 1 . Terrain Destroyed 92 | . . . 1 91 Melee 1 | . . . 1 . Projectile 1 | . . . . 1 AOE 90 | . . . . 90 Terrain Rammed . | . . . . . Walls Destroyed . | . . . . . Machines Disabled . | . . . . . Actions | -11 -10 -10 -9 -9 --------- Run | Jun Mat Min Mat Min Total 949 | 47 111 283 345 163 Wait 63 | . . 46 10 7 Move 755 | 37 101 216 265 136 Hop . | . . . . . Pick Up 23 | 5 4 4 10 . Fast Attach 16 | 5 2 3 4 2 Attach 10 | . 1 1 4 4 Detach 2 | . . . 1 1 Swap 6 | . . . 6 . Drop 16 | . 1 6 9 . Fire 46 | . 2 7 24 13 Melee 12 | . . . 12 . Ram . | . . . . . Kick . | . . . . . Crush . | . . . . . Escape Stasis . | . . . . . Rewire . | . . . . . Trap . | . . . . . Miscellaneous . | . . . . . Route ------- -11/Junkyard -10/Materials -10/Mines -9/Materials -9/Mines (discovered 1 exit: [*Mat]) History --------- Turn | Location | Event 25 | -11/Junkyard | Discovered new exit (range 16) 47 | -11/Junkyard | Entered Materials 108 | -10/Materials | Discovered new exit (range 12) 163 | -10/Materials | Entered Mines 188 | -10/Mines | Met a Derelict bent on vengeance 313 | -10/Mines | Build established: Mutant 371 | -10/Mines | Discovered new exit (range 8) 381 | -10/Mines | Assembled infested the area 485 | -10/Mines | Entered Materials 485 | -9/Materials | Evolved 2 slots: Propulsion x2 816 | -9/Materials | Discovered new exit (range 15) 928 | -9/Materials | Released all parts (2) 929 | -9/Materials | Core integrity fell below 50% 938 | -9/Materials | Entered Mines 958 | -9/Mines | Lost 8 parts (1p4n1u2w) 961 | -9/Mines | Excavation squad dispatched 961 | -9/Mines | A large section of the Mines collapsed 986 | -9/Mines | Received a Rocket Launcher from a helpful Derelict 1049 | -9/Mines | Lost 3 parts (3w) 1055 | -9/Mines | Core integrity fell below 20% 1082 | -9/Mines | Discovered new exit (range 13) 1092 | -9/Mines | Destroyed by G-34 Mercenary with Small Laser Last Messages --------------- 01015_ Destroyed Flight Unit. 01015_ S-10 Pest destroyed. 01018_ Rocket Launcher destroyed. 01032_ Destroyed Heat Sink. 01032_ G-34 Mercenary destroyed. 01035_ The unstable cave ceiling collapses. 01045_ K-01 Serf collects debris. 01052_ Acquired 12 matter. 01053_ The unstable cave ceiling collapses. 01053_ K-01 Serf collects debris. 01054_ G-34 Mercenary destroyed. 01054_ T-07 Excavator destroyed. 01058_ The unstable cave ceiling collapses. 01058_ K-01 Serf collects debris. 01060_ Acquired Aluminum Leg. 01062_ K-01 Serf collects debris. 01067_ Acquired 12 matter. 01069_ K-01 Serf collects debris. 01082_ EXIT=FOUND 01089_ Aluminum Leg destroyed. Map ----- +----------------------------------------------------+ | ???????????## # ## #???????? | | ????????????### "#?#???????? | | ????????????### ##?????????? | | ????####????# " ??????????? | | ???## #???# " ??????????? | | ???# #### # #??????????? | | ???# ## #??????????? | | #???# #??????????? | | ????# ##?????????? | | ????## ###???????? | | ?????## ### ##??????? | | ??????##% #?# #??????? | | ??????## ### #% ###????? ? | | ??????# # # #??????# ? | | ??????# #??????# ? | | ??????# ##?????# ? | | ???##### ##????# # | | ???# ##### | | ???# ## # ### | | ???#s######## ### | | ???# # ##?? | | ??## # ##? | | ?## ### ### | | ?# #?# ![ # | | ?# ##?# *%% ! | | ?# @ #??## = # | | ?## #???# # # | | ?### #???# # # # | | ???# g#???# ####### | | ???#gg#???# ??????## | | ???? < ??# ???????### | | ???? ?## ??????????# | | ?#?? ??####??????????## | | ???? ???????????????# | | ????######??????????????## | | ?????????????????????????## | | ??????????????????????????## | | ???????????????????????????? | | ???????????????????????????? | | | | | | | | | | | | | | | | | | | | | | | +----------------------------------------------------+ Best States ------------- Heat Dissipation 28 Energy Generation 14 Energy Capacity 275 Matter Stores 300 Matter Capacity 500 Sight Range 16 Terrain Scan Range 16 Terrain Scan Density 10 Evasion (%) 55 Item Schematics ----------------- None Robot Schematics ------------------ None Fabricated ------------ Nothing Alien Tech Used ----------------- None Achievements -------------- None Challenges ------------ None Game ------ Seed StructuralThiefMediator Manual? 0 Play Time 00:29:17 Cumulative 55.1 hours Start 2024.02.16 @ 21:10:30 End 2024.02.16 @ 21:40:47 Sessions 1 Manual Loads 0 Difficulty Rogue Special Mode None Game No. 72 Rogue 72 Adventurer 0 Explorer 0 Win Type - Total 0 Types 0/0/0/0/0/0/0/0/0 Lore% 21 Gallery% 35 Achievement% 24 Wizard Run 0 Options --------- ASCII 0 Keyboard 1 Movement Numpad Keybinds 0 Fullscreen 2 Font 24/Proggy Map View 113x50 Tactical HUD 1 Map Filters NONE Filters NONE Steam 1 RUN: 378dec82-6146-42f8-80d1-75a1aade823a